[Event "12th Tamil Nadu Circuit-IM 2024"]
[Site "Chennai"]
[Date "2024.01.13"]
[Round "7.2"]
[White "Touzane, Olivier"]
[Black "Pradeep Kumar R A"]
[Result "0-1"]
[ECO "A49"]
[WhiteElo "2242"]
[BlackElo "2189"]
[Annotator "RC"]
[PlyCount "116"]
[EventDate "2024.01.09"]
[EventType "tourn"]
[EventCountry "IND"]
[SourceTitle "playchess.com"]
[Source "ChessBase"]
[SourceQuality "1"]
[TimeControl "5400+30"]

1. d4 {[%emt 0:00:04]} Nf6 {[%emt 0:00:15]} 2. Nf3 {[%emt 0:00:06]} g6 {[%emt 0:00:21]} 3. g3 {[%emt 0:00:35]} Bg7 {[%emt 0:00:17]} 4. Bg2 {[%emt 0:00:04]} O-O {[%emt 0:00:05]} 5. O-O {[%emt 0:00:07]} d6 {[%emt 0:00:27]} 6. a4 {[%emt 0:00:08]} c5 {[%emt 0:02:49]} 7. a5 {[%emt 0:04:03]} Na6 {[%emt 0:08:52]} 8. dxc5 {[%emt 0:04:56]} Nxc5 {[%emt 0:01:55]} 9. b4 {[%emt 0:11:54]} Nce4 {[%emt 0:00:57]} 10. Bb2 {[%emt 0:01:41]} d5 {[%emt 0:04:32]} 11. Na3 {[%emt 0:01:13]} Nd6 {[%emt 0:06:40]} 12. Be5 {[%emt 0:03:28]} Bd7 {[%emt 0:04:54]} 13. Nd4 {[%emt 0:01:38]} Rc8 {[%emt 0:06:27]} 14. e3 {[%emt 0:08:09]} Nde4 {[%emt 0:24:40]} 15. Ne2 {[%emt 0:01:40]} b6 {[%emt 0:03:59]} 16. a6 {[%emt 0:00:23]} Bc6 {[%emt 0:05:21]} 17. Qd3 {[%emt 0:02:43]} Nd7 {[%emt 0:03:29]} 18. Bxg7 {[%emt 0:00:58]} Kxg7 {[%emt 0:00:01]} 19. Nd4 {[%emt 0:04:16]} Ba8 {[%emt 0:02:01]} 20. Ndb5 {[%emt 0:00:53]} Ndf6 {[%emt 0:15:26]} 21. Nxa7 {[%emt 0:01:39]} Rc3 {[%emt 0:00:16]} 22. Qd4 {[%emt 0:01:35]} Rxa3 {[%emt 0:05:35]} 23. Rxa3 {[%emt 0:01:29]} Nd6 {[%emt 0:00:09]} 24. Rc3 {[%emt 0:07:31]} e5 {[%emt 0:01:44]} 25. Qxe5 {[%emt 0:03:25]} Qd7 {[%emt 0:00:53]} 26. b5 {[%emt 0:04:51]} Re8 {[%emt 0:00:35]} 27. Qf4 {[%emt 0:00:31]} Nfe4 {[%emt 0:00:33]} 28. Rc6 {[%emt 0:04:21]} Bxc6 {[%emt 0:00:37]} 29. Nxc6 {[%emt 0:01:01]} Nxb5 {[%emt 0:00:05]} 30. Nb4 {[%emt 0:01:55]} Nbc3 {[%emt 0:00:10]} 31. Qh4 {[%emt 0:04:16]} Qa4 {[%emt 0:00:38]} 32. f3 {[%emt 0:00:52]} Nf6 {[%emt 0:00:53]} 33. Re1 {[%emt 0:00:58]} Nb5 {[%emt 0:00:45]} 34. Bf1 {[%emt 0:05:19]} Nd6 {[%emt 0:00:24]} 35. Qd4 {[%emt 0:01:06]} Nf5 {[%emt 0:00:38]} 36. Qxb6 {[%emt 0:02:20]} Re6 {[%emt 0:00:26]} 37. Qc5 {[%emt 0:02:25]} d4 {[%emt 0:00:30]} 38. e4 {[%emt 0:01:16]} Qa3 {[%emt 0:00:32]} 39. Bd3 {[%emt 0:05:05]} Nd7 {[%emt 0:00:22]} 40. Qc4 {[%emt 0:01:35]} Ne5 {[%emt 0:00:04]} 41. Qb3 {[%emt 0:04:00]} Nxf3+ {[%emt 0:00:09]} 42. Kf2 {[%emt 0:00:49]} Qxb3 {[%emt 0:00:21]} 43. cxb3 {[%emt 0:00:05]} Nxe1 {[%emt 0:00:04]} 44. Bc4 {[%emt 0:00:39]} Rxe4 {[%emt 0:01:22]} 45. a7 {[%emt 0:00:52]} Re8 {[%emt 0:00:05]} 46. Nc6 {[%emt 0:00:12]} d3 {[%emt 0:00:43]} 47. Kf1 {[%emt 0:04:18]} Ne3+ {[%emt 0:00:58]} 48. Kxe1 {[%emt 0:00:17]} Nxc4+ {[%emt 0:00:00]} 49. Kd1 {[%emt 0:00:13]} Nb2+ {[%emt 0:00:48]} 50. Kc1 {[%emt 0:00:45]} Rc8 {[%emt 0:01:03]} 51. Kd2 {[%emt 0:00:31]} Rxc6 {[%emt 0:00:39]} 52. a8=Q {[%emt 0:00:33]} Rc2+ {[%emt 0:00:03]} 53. Ke3 {[%emt 0:00:29]} d2 {[%emt 0:00:10]} 54. Qe8 {[%emt 0:00:47]} d1=Q {[%emt 0:00:12]} 55. Qe5+ {[%emt 0:00:20]} f6 {[%emt 0:00:17]} 56. Qe7+ {[%emt 0:00:07]} Kh6 {[%emt 0:00:07]} 57. Qf8+ {[%emt 0:00:50]} Kh5 {[%emt 0:00:09]} 58. g4+ {[%emt 0:00:37]} Qxg4 {[%emt 0:00:09]} 0-1

[Event "12th Tamil Nadu Circuit-IM 2024"]
[Site "Chennai"]
[Date "2024.01.13"]
[Round "7.3"]
[White "Tologon tegin, Semetei"]
[Black "Mohamed Anees M"]
[Result "*"]
[ECO "C02"]
[WhiteElo "2384"]
[BlackElo "2319"]
[Annotator "RC"]
[PlyCount "27"]
[EventDate "2024.01.09"]
[EventType "tourn"]
[EventCountry "IND"]
[SourceTitle "playchess.com"]
[Source "ChessBase"]
[SourceQuality "1"]
[TimeControl "5400+30"]

1. e4 {[%emt 0:00:04]} e6 {[%emt 0:00:25]} 2. d4 {[%emt 0:00:17]} d5 {[%emt 0:00:04]} 3. e5 {[%emt 0:01:15]} c5 {[%emt 0:00:04]} 4. c3 {[%emt 0:00:05]} Nc6 {[%emt 0:01:51]} 5. Nf3 {[%emt 0:00:07]} Qb6 {[%emt 0:00:06]} 6. Bd3 {[%emt 0:00:38]} cxd4 {[%emt 0:00:28]} 7. O-O {[%emt 0:00:25]} Bd7 {[%emt 0:00:17]} 8. Re1 {[%emt 0:00:11]} Nge7 {[%emt 0:01:24]} 9. h4 {[%emt 0:00:10]} Rc8 {[%emt 0:00:25]} 10. h5 {[%emt 0:02:55]} h6 {[%emt 0:01:50]} 11. Nbd2 {[%emt 0:04:24]} g5 {[%emt 0:12:29]} 12. Nb3 {[%emt 0:03:36]} dxc3 {[%emt 0:00:30]} 13. bxc3 {[%emt 0:00:13]} Bg7 {[%emt 0:01:59]} 14. Rb1 {[%emt 0:06:52]} *

[Event "12th Tamil Nadu Circuit-IM 2024"]
[Site "Chennai"]
[Date "2024.01.13"]
[Round "7.3"]
[White "Buscara, Sevan"]
[Black "Md Imran"]
[Result "0-1"]
[ECO "C02"]
[WhiteElo "2359"]
[BlackElo "2222"]
[Annotator "TA"]
[PlyCount "101"]
[EventDate "2024.01.09"]
[EventType "tourn"]
[EventCountry "IND"]
[SourceTitle "playchess.com"]
[Source "ChessBase"]
[SourceQuality "1"]
[TimeControl "5400+30"]

{[%evp 31,101,10,0,-18,-13,-23,-27,-53,-23,-31,0,-12,-33,-16,0,2,25,19,19,0,0,-13,-22,-24,0,0,0,0,0,-7,0,-4,-4,-22,-20,-255,-246,-245,-230,-202,-281,-291,-291,-262,-267,-466,-458,-458,-446,-312,-622,-575,-576,-939,-192,-933,0,-1117,-1448,-2314,-1848,-1622,-1570,-1023,-1000,-29980,-29980,-29986,-29987,-29987,-29988,-29987]} 1. e4 {[%emt 0:00:04]} e6 {[%emt 0:00:25]} 2. d4 {[%emt 0:00:17]} d5 {[%emt 0:00:04]} 3. e5 {[%emt 0:01:15]} c5 {[%emt 0:00:04]} 4. c3 {[%emt 0:00:05]} Nc6 {[%emt 0:01:51]} 5. Nf3 {[%emt 0:00:07]} Qb6 {[%emt 0:00:06]} 6. Bd3 {[%emt 0:00:38]} cxd4 {[%emt 0:00:28]} 7. O-O {[%emt 0:00:25] is now more promising than 7.cxd4. C02: French: Advance Variation.} Bd7 {[%emt 0:00:17]} 8. Re1 {[%emt 0:00:11]} Nge7 {[%emt 0:01:24]} 9. h4 {[%emt 0:00:10]} Rc8 {[%emt 0:00:25]} 10. h5 {[%emt 0:02:55]} h6 {[%emt 0:01:50]} 11. Nbd2 {[%emt 0:04:24]} g5 {[%emt 0:12:29]} 12. Nb3 $146 {[%emt 0:03:36]} ({Predecessor:} 12. hxg6 fxg6 13. Nb3 dxc3 14. bxc3 Bg7 15. Ba3 Rf8 16. Bd6 a6 17. Rb1 Qa7 18. Nfd4 {1-0 Tukhaev,A (2534)-Ilyasli,U (2250) Baku Jafarov Memorial 2022 (1)}) 12... dxc3 {[%emt 0:00:30]} 13. bxc3 {[%emt 0:00:13]} Bg7 {[%emt 0:01:59]} 14. Rb1 {[%emt 0:06:52]} Qc7 {[%emt 0:16:42]} 15. Nc5 {[%emt 0:06:29]} Nxe5 {[%emt 0:03:00]} 16. Nxe5 {[%emt 0:02:48]} Bxe5 {[%emt 0:00:16]} 17. Rxb7 {[%emt 0:02:25]} Bh2+ {[%emt 0:06:36]} 18. Kh1 {[%emt 0:00:08]} Qxc5 {[%emt 0:00:02]} 19. Kxh2 {[%emt 0:00:39]} Bc6 {[%emt 0:02:23]} (19... Qxc3 20. Kg1 $16 (20. Rxa7 Qc5 $17) (20. Bb2 Qc6 $14)) (19... Qxf2 {is more complex.} 20. Be3 Qh4+ 21. Kg1 g4) 20. Rb2 {[%emt 0:11:26]} Qxc3 {[%emt 0:03:48]} 21. Rc2 {[%emt 0:02:16]} Qb4 {[%emt 0:00:02]} 22. Bb2 {[%emt 0:02:41]} d4 {[%emt 0:03:22]} (22... O-O $5 23. Qf3 Nf5 (23... Qxe1 $2 24. Qf6 $18) 24. Bxf5 d4 (24... Qxe1 $2 25. Bh7+ Kxh7 26. Qf6 $18) 25. Bh7+ (25. Rxc6 Rxc6 26. Qxc6 Qxe1 $11) 25... Kxh7 26. Qd3+ Kg8 27. Rxe6 (27. Qxd4 Qxd4 28. Bxd4 Bd5 $11) 27... fxe6 (27... Qb8+ $2 28. Kg1 $18) (27... Bb5 $2 28. Rg6+ Kh7 29. Qe4 $18) 28. Qg6+ Kh8 29. Qxh6+ Kg8 30. Qg6+ Kh8 $11) 23. Qc1 {[%emt 0:03:54]} O-O {[%emt 0:33:22]} 24. Ba3 {[%emt 0:02:47]} Qb8+ {[%emt 0:00:00]} 25. Kg1 {[%emt 0:00:11]} (25. g3 $5 Ba8 (25... Bb5 $2 26. Bxb5 Qxb5 27. Bxe7 $18) 26. Bxe7 $11) 25... Ba4 $1 {[%emt 0:00:00]} 26. Rc5 {[%emt 0:03:22]} (26. Bxe7 $2 Bxc2 27. Bxc2 d3 28. Bxf8 Rxc2 $19 (28... dxc2 $2 29. Bxh6 f6 30. Bxg5 $18)) (26. Rc4 $5 Bb5 $8 (26... Rxc4 $2 27. Qxc4 Nd5 28. Qxd4 $18) 27. Bxe7 Rxc4 28. Bxc4 $11) 26... Nd5 {[%emt 0:00:00]} 27. Qc4 {[%emt 0:01:57]} Bd7 {[%emt 0:00:00]} (27... Rxc5 $5 28. Bxc5 Rc8 29. Qxd4 Be8 $14) 28. Qxd4 {[%emt 0:01:15]} Rxc5 {[%emt 0:00:00]} 29. Bxc5 {[%emt 0:01:06]} Rc8 {[%emt 0:00:00]} 30. Bxa7 {[%emt 0:03:52]} Qb4 {[%emt 0:00:00]} 31. Qe5 {[%emt 0:12:42]} f6 {[%emt 0:00:00]} 32. Qa1 {[%emt 0:05:01]} Ra8 {[%emt 0:00:00]} 33. Rb1 $2 {[%emt 0:04:43]} (33. a3 $11 {and White is okay.} Qb3 34. Qd4) 33... Qa3 $19 {[%emt 0:00:00]} 34. Bc4 {[%emt 0:03:56]} Qxa7 {[%emt 0:00:00]} (34... Rxa7 35. Bxd5 exd5 36. Qxf6 $11) 35. Bxd5 {[%emt 0:00:06]} exd5 {[%emt 0:00:00]} 36. Qxf6 {[%emt 0:00:16] [#]} Be8 $1 {[%emt 0:00:00]} (36... Qxa2 $2 37. Qg6+ Kf8 38. Qxh6+ Kg8 39. Qxg5+ Kh8 40. Qf6+ Kg8 41. Qg6+ Kh8 42. h6 $18) 37. Qxh6 {[%emt 0:01:54]} Qe7 {[%emt 0:00:00]} (37... Qxa2 $2 38. Qxg5+ Kf8 39. Rb7 Qa1+ 40. Kh2 Bxh5 41. Qf5+ (41. Qxh5 Qf6 $18) 41... Kg8 42. Qxd5+ (42. Qxh5 Qh8 $18) 42... Kf8 43. Qxh5 $18) 38. Rb6 $2 {[%emt 0:02:09]} (38. Qb6) 38... Qe1+ $19 {[%emt 0:00:00]} (38... Rxa2 $2 39. Re6 Ra1+ 40. Kh2 Qc7+ (40... Qd8 $2 41. Re5 $18) 41. g3 $18) 39. Kh2 {[%emt 0:00:11]} Qe5+ {[%emt 0:00:00]} (39... Rxa2 40. Qxg5+ Kf7 41. Qf6+ (41. Qxd5+ Ke7 42. Qd6+ Kf7 43. Rb7+ Bd7 44. Rxd7+ Ke8 45. Rd8+ Kf7 46. Rf8+ Kg7 47. Qf6+ Kh7 48. Rh8#) (41. Rb7+ Ke6 $18) (41. Rf6+ Ke7 42. Rb6+ Kd7 43. Qg7+ Qe7 44. Rb7+ Kc6 45. Qxe7 Bd7 46. Qxd7+ Kc5) 41... Kg8 42. Rb7) 40. g3 {[%emt 0:05:58]} Rxa2 {[%emt 0:00:00]} 41. Rf6 {[%emt 0:01:03]} Bf7 {[%emt 0:00:00]} 42. Kg2 {[%emt 0:01:35]} Qe4+ $2 {[%emt 0:00:00]} (42... d4 43. Rxf7 Kxf7 44. Qh7+ Kf8 45. Qh6+ Ke7) 43. Kh2 $2 {[%emt 0:01:20]} (43. Kh3 Qe5 44. Rf3) 43... Qe5 {[%emt 0:00:17]} 44. Kg2 $1 {[%emt 0:00:05]} d4 {[%emt 0:01:03]} 45. Rxf7 {[%emt 0:00:22]} Kxf7 {[%emt 0:00:07]} 46. Qh7+ {[%emt 0:00:36]} Kf8 {[%emt 0:00:02]} 47. Qh6+ {[%emt 0:00:55]} Ke7 {[%emt 0:00:27]} 48. Qh7+ {[%emt 0:00:22]} Kd6 {[%emt 0:00:31]} 49. Qb1 {[%emt 0:02:17]} Qd5+ {[%emt 0:01:01]} 50. Kg1 {[%emt 0:00:08]} d3 {[%emt 0:00:08]} 51. Qb6+ {[%emt 0:00:13]} 0-1

[Event "12th Tamil Nadu Circuit-IM 2024"]
[Site "Chennai"]
[Date "2024.01.13"]
[Round "7.4"]
[White "Gochelashvili, David"]
[Black "Prasannaa.s"]
[Result "1-0"]
[ECO "B74"]
[WhiteElo "2287"]
[BlackElo "2213"]
[Annotator "RC"]
[PlyCount "117"]
[EventDate "2024.01.09"]
[EventType "tourn"]
[EventCountry "IND"]
[SourceTitle "playchess.com"]
[Source "ChessBase"]
[SourceQuality "1"]
[TimeControl "5400+30"]

1. e4 {[%emt 0:01:11]} c5 {[%emt 0:00:27]} 2. Nf3 {[%emt 0:00:06]} g6 {[%emt 0:00:20]} 3. d4 {[%emt 0:00:59]} cxd4 {[%emt 0:00:06]} 4. Nxd4 {[%emt 0:03:14]} Nc6 {[%emt 0:01:16]} 5. Nb3 {[%emt 0:03:45]} Bg7 {[%emt 0:00:19]} 6. Be2 {[%emt 0:00:31]} Nf6 {[%emt 0:12:21]} 7. Nc3 {[%emt 0:00:34]} O-O {[%emt 0:00:11]} 8. O-O {[%emt 0:00:14]} d6 {[%emt 0:14:39]} 9. Be3 {[%emt 0:03:56]} Be6 {[%emt 0:04:48]} 10. f4 {[%emt 0:00:45]} Qc8 {[%emt 0:06:37]} 11. Kh1 {[%emt 0:00:36]} Rd8 {[%emt 0:14:46]} 12. Bf3 {[%emt 0:00:27]} d5 {[%emt 0:05:35]} 13. exd5 {[%emt 0:22:19]} Nxd5 {[%emt 0:06:12]} 14. Nxd5 {[%emt 0:00:35]} Bxd5 {[%emt 0:00:04]} 15. Bxd5 {[%emt 0:00:07]} e6 {[%emt 0:00:04]} 16. Bxe6 {[%emt 0:14:58]} Qxe6 {[%emt 0:00:08]} 17. Qf3 {[%emt 0:00:47]} Nb4 {[%emt 0:02:38]} 18. f5 {[%emt 0:00:22]} gxf5 {[%emt 0:02:55]} 19. Bg5 {[%emt 0:07:13]} Nxc2 {[%emt 0:01:41]} 20. Nc5 {[%emt 0:17:56]} Qd5 {[%emt 0:06:42]} 21. Bxd8 {[%emt 0:04:54]} Qxf3 {[%emt 0:00:38]} 22. gxf3 {[%emt 0:00:07]} Nxa1 {[%emt 0:00:06]} 23. Nxb7 {[%emt 0:00:05]} Nc2 {[%emt 0:06:21]} 24. Rg1 {[%emt 0:06:47]} Kh8 {[%emt 0:05:37]} 25. Nd6 {[%emt 0:01:20]} h6 {[%emt 0:00:03]} 26. Bc7 {[%emt 0:03:25]} Nd4 {[%emt 0:01:35]} 27. Nxf7+ {[%emt 0:00:55]} Kh7 {[%emt 0:00:02]} 28. Be5 {[%emt 0:00:07]} Bxe5 {[%emt 0:00:06]} 29. Nxe5 {[%emt 0:00:02]} Re8 {[%emt 0:00:50]} 30. Nd7 {[%emt 0:00:22]} Rc8 {[%emt 0:02:00]} 31. Nf6+ {[%emt 0:00:42]} Kh8 {[%emt 0:00:01]} 32. Rd1 {[%emt 0:00:19]} Rc6 {[%emt 0:03:07]} 33. Rxd4 {[%emt 0:00:25]} Rxf6 {[%emt 0:00:02]} 34. Rd8+ {[%emt 0:00:19]} Kg7 {[%emt 0:00:09]} 35. Rd7+ {[%emt 0:00:04]} Kg6 {[%emt 0:00:04]} 36. Rxa7 {[%emt 0:00:04]} Kg5 {[%emt 0:00:34]} 37. Kg2 {[%emt 0:05:31]} Rc6 {[%emt 0:00:13]} 38. Kg3 {[%emt 0:00:39]} f4+ {[%emt 0:00:26]} 39. Kh3 {[%emt 0:00:06]} Rc2 {[%emt 0:00:04]} 40. Ra5+ {[%emt 0:00:24]} Kf6 {[%emt 0:00:23]} 41. Rb5 {[%emt 0:00:05]} Rf2 {[%emt 0:00:30]} 42. Kg4 {[%emt 0:00:14]} Rxh2 {[%emt 0:00:14]} 43. Kxf4 {[%emt 0:00:04]} Rh4+ {[%emt 0:00:08]} 44. Kg3 {[%emt 0:00:15]} Ra4 {[%emt 0:00:02]} 45. a3 {[%emt 0:00:09]} Ra6 {[%emt 0:00:18]} 46. Kh4 {[%emt 0:00:35]} Ra4+ {[%emt 0:00:28]} 47. Rb4 {[%emt 0:00:15]} Ra5 {[%emt 0:00:02]} 48. a4 {[%emt 0:00:13]} Rg5 {[%emt 0:00:11]} 49. Rb6+ {[%emt 0:00:10]} Kg7 {[%emt 0:00:49]} 50. b4 {[%emt 0:00:06]} Rg2 {[%emt 0:00:03]} 51. a5 {[%emt 0:00:06]} Rf2 {[%emt 0:00:18]} 52. Kg3 {[%emt 0:00:13]} Ra2 {[%emt 0:00:10]} 53. a6 {[%emt 0:00:06]} Ra4 {[%emt 0:00:04]} 54. Rb7+ {[%emt 0:00:21]} Kg6 {[%emt 0:00:06]} 55. a7 {[%emt 0:00:15]} h5 {[%emt 0:00:03]} 56. Rb6+ {[%emt 0:00:15]} Kf5 {[%emt 0:00:06]} 57. Rb5+ {[%emt 0:00:07]} Ke6 {[%emt 0:00:05]} 58. Ra5 {[%emt 0:00:05]} Rxa5 {[%emt 0:00:08]} 59. bxa5 {[%emt 0:00:07]} 1-0

[Event "12th Tamil Nadu Circuit-IM 2024"]
[Site "Chennai"]
[Date "2024.01.13"]
[Round "7.5"]
[White "Raghav V"]
[Black "Mamombe, Kudzanai"]
[Result "1-0"]
[ECO "B33"]
[WhiteElo "2150"]
[BlackElo "1797"]
[Annotator "RC"]
[PlyCount "107"]
[EventDate "2024.01.09"]
[EventType "tourn"]
[EventCountry "IND"]
[SourceTitle "playchess.com"]
[Source "ChessBase"]
[SourceQuality "1"]
[TimeControl "5400+30"]

1. e4 {[%emt 0:04:50]} c5 {[%emt 0:00:12]} 2. Nf3 {[%emt 0:00:05]} Nc6 {[%emt 0:00:06]} 3. d4 {[%emt 0:00:06]} cxd4 {[%emt 0:00:05]} 4. Nxd4 {[%emt 0:00:05]} Nf6 {[%emt 0:00:05]} 5. Nc3 {[%emt 0:00:06]} e5 {[%emt 0:00:04]} 6. Ndb5 {[%emt 0:00:05]} d6 {[%emt 0:00:02]} 7. Bg5 {[%emt 0:00:09]} a6 {[%emt 0:00:02]} 8. Na3 {[%emt 0:00:06]} b5 {[%emt 0:00:25]} 9. Nd5 {[%emt 0:00:13]} Be7 {[%emt 0:00:13]} 10. Bxf6 {[%emt 0:00:09]} Bxf6 {[%emt 0:00:08]} 11. c3 {[%emt 0:00:31]} Ne7 {[%emt 0:00:32]} 12. Nxf6+ {[%emt 0:07:17]} gxf6 {[%emt 0:00:02]} 13. Bd3 {[%emt 0:06:28]} f5 {[%emt 0:05:46]} 14. exf5 {[%emt 0:02:09]} Bxf5 {[%emt 0:00:54]} 15. Bxf5 {[%emt 0:00:44]} Nxf5 {[%emt 0:00:26]} 16. Qf3 {[%emt 0:02:35]} Ne7 {[%emt 0:00:41]} 17. O-O-O {[%emt 0:03:24]} O-O {[%emt 0:03:11]} 18. Qd3 {[%emt 0:06:18]} d5 {[%emt 0:00:31]} 19. Qg3+ {[%emt 0:04:16]} Ng6 {[%emt 0:00:14]} 20. h4 {[%emt 0:00:07]} Kh8 {[%emt 0:00:09]} 21. Qf3 {[%emt 0:01:55]} d4 {[%emt 0:07:08]} 22. h5 {[%emt 0:02:20]} Qg5+ {[%emt 0:07:52]} 23. Kb1 {[%emt 0:00:59]} Nf4 {[%emt 0:00:05]} 24. cxd4 {[%emt 0:01:24]} exd4 {[%emt 0:02:28]} 25. Rxd4 {[%emt 0:18:31]} Ne6 26. Rd5 Qh6 27. Qc3+ f6 {[%emt 0:03:25]} 28. Rd6 {[%emt 0:06:47]} Ng5 {[%emt 0:00:35]} 29. Re1 {[%emt 0:04:22]} Qxh5 {[%emt 0:11:04]} 30. Rxf6 {[%emt 0:27:41]} Rxf6 31. Qxf6+ Kg8 32. Nc2 Qg6 33. Qxg6+ hxg6 34. Re5 Rd8 35. Kc1 Nf7 36. Re6 Rd6 37. Rxd6 Nxd6 38. Nb4 a5 39. Nc6 a4 40. Kc2 {[%emt 0:01:11]} Kf7 {[%emt 0:00:03]} 41. f3 {[%emt 0:03:34]} Ke6 {[%emt 0:00:50]} 42. Kc3 {[%emt 0:01:05]} g5 {[%emt 0:00:17]} 43. Kd4 {[%emt 0:01:57]} Nc4 {[%emt 0:01:38]} 44. b3 {[%emt 0:01:27]} axb3 {[%emt 0:01:22]} 45. axb3 {[%emt 0:01:14]} Nd2 {[%emt 0:00:02]} 46. b4 {[%emt 0:01:27]} Nb1 {[%emt 0:01:23]} 47. Na7 {[%emt 0:02:28]} Na3 {[%emt 0:00:14]} 48. Kc5 {[%emt 0:00:11]} Ke5 {[%emt 0:00:47]} 49. Nxb5 {[%emt 0:01:25]} Nc2 {[%emt 0:00:01]} 50. Nc3 {[%emt 0:01:17]} Nxb4 {[%emt 0:05:58]} 51. Kxb4 {[%emt 0:01:28]} Kf4 {[%emt 0:00:07]} 52. Ne4 {[%emt 0:02:42]} g4 {[%emt 0:00:20]} 53. Nd2 {[%emt 0:00:12]} gxf3 {[%emt 0:02:34]} 54. gxf3 {[%emt 0:00:43]} 1-0

[Event "12th Tamil Nadu Circuit-IM 2024"]
[Site "Chennai"]
[Date "2024.01.13"]
[Round "8.1"]
[White "Md Imran"]
[Black "Mamombe, Kudzanai"]
[Result "1-0"]
[ECO "D15"]
[WhiteElo "2222"]
[BlackElo "1797"]
[Annotator "TA"]
[PlyCount "85"]
[EventDate "2024.01.09"]
[EventType "tourn"]
[EventCountry "IND"]
[SourceTitle "playchess.com"]
[Source "ChessBase"]
[SourceQuality "1"]
[TimeControl "5400+30"]

{[%evp 13,85,22,45,44,52,47,70,60,57,59,97,22,17,27,62,54,63,63,90,87,83,76,108,116,106,102,157,157,166,171,171,173,239,218,227,228,200,225,311,247,361,297,301,286,265,238,269,260,248,222,377,374,360,357,425,420,433,413,935,950,950,948,948,887,1012,957,29967,29966,6295,5525,5389,1316,4910,4493]} 1. d4 {[%emt 0:00:38]} d5 {[%emt 0:02:23]} 2. c4 {[%emt 0:00:14]} c6 {[%emt 0:00:01]} 3. Nc3 {[%emt 0:00:06]} Nf6 {[%emt 0:00:06]} 4. Nf3 {[%emt 0:00:08]} Bf5 {[%emt 0:00:19]} 5. Qb3 {[%emt 0:00:06]} Qb6 {[%emt 0:01:23]} 6. c5 {[%emt 0:00:10]} Qxb3 {[%emt 0:00:46]} 7. axb3 {[%emt 0:00:02][%cal Ba2b3,Bb3b4,Bb4b5][%mdl 32]} Nbd7 {[%emt 0:00:37]} 8. b4 {[%emt 0:00:02]} e6 {[%emt 0:00:28]} 9. Bf4 {[%emt 0:00:25]} Be7 {[%emt 0:00:11]} 10. b5 {[%emt 0:00:33] White is slightly better.} O-O {[%emt 0:00:15]} 11. e3 {[%emt 0:00:06] And now bxc6 would win.} Nh5 {[%emt 0:00:30]} 12. Kd2 {[%emt 0:02:22]} (12. bxc6 $16 bxc6 13. Bc7) 12... Nxf4 $11 {[%emt 0:00:37]} 13. exf4 {[%emt 0:00:03]} Rfd8 {[%emt 0:03:21]} 14. b4 {[%emt 0:00:10]} cxb5 {[%emt 0:02:25]} 15. Bxb5 {[%emt 0:00:19]} Nf6 {[%emt 0:00:50] White leaves nothing to chance now.} 16. Ne5 {[%emt 0:00:19][%cal Bf3e5,Be5c4,Bc4d6][%mdl 32]} a6 {[%emt 0:01:26]} 17. Bd3 {[%emt 0:00:08]} Ne4+ {[%emt 0:00:44]} 18. Bxe4 {[%emt 0:00:08]} dxe4 {[%emt 0:00:17]} 19. Ke3 {[%emt 0:00:16][%cal Og2g4]} h5 {[%emt 0:03:55]} ({Better is} 19... g5) 20. Nc4 $16 {[%emt 0:01:00] White is more active.} g5 {[%emt 0:06:06] [#] ...gxf4+ is the strong threat.} 21. g3 {[%emt 0:00:05][%cal Bg2g3,Bg3f4][%mdl 32]} ({Not} 21. Nxe4 gxf4+ 22. Kd3 Rd5 $17) 21... gxf4+ {[%emt 0:07:14]} 22. gxf4 {[%emt 0:00:11]} Kh8 {[%emt 0:03:07]} (22... Rac8 $142 23. Rhg1+ (23. Nxe4 Rc7 $18) 23... Kf8 24. Nxe4 Rc7) 23. Nxe4 {[%emt 0:01:29]} Rac8 {[%emt 0:14:38]} 24. Ned6 {[%emt 0:00:38]} Bxd6 {[%emt 0:00:10]} 25. Nxd6 {[%emt 0:00:02]} Rc7 {[%emt 0:00:11]} 26. Rhg1 {[%emt 0:00:26]} Bg6 {[%emt 0:00:29]} (26... Rxd6 {might work better.} 27. cxd6 Rc3+ 28. Ke2 Rc2+ 29. Kd1 Rc6) 27. Rad1 {[%emt 0:01:40]} Rcd7 {[%emt 0:01:38]} 28. Rg5 {[%emt 0:00:28]} Kg7 {[%emt 0:00:56]} 29. Nc4 {[%emt 0:01:22]} Kf6 {[%emt 0:02:00]} 30. Nb6 {[%emt 0:00:44]} Re7 {[%emt 0:01:16]} 31. Re5 {[%emt 0:00:05] Black must now prevent d5.} Bf5 $2 {[%emt 0:03:14]} (31... Kg7) 32. d5 $18 {[%emt 0:00:17]} Ree8 {[%emt 0:00:32]} 33. d6 {[%emt 0:00:26]} h4 {[%emt 0:05:29][%cal Bh5h4,Bh4h3][%mdl 32]} 34. Rg1 {[%emt 0:00:21]} h3 {[%emt 0:03:14]} 35. Rg5 {[%emt 0:00:19][%cal Ob6d5] Hoping for Nd5+!} Rh8 {[%emt 0:02:14] [#]} (35... Bg6 $142 36. Kd4 Kg7) 36. Nd5+ $1 {[%emt 0:00:15][%mdl 512]} exd5 {[%emt 0:01:23]} 37. Rgxf5+ {[%emt 0:00:17][%mdl 4096] Endgame. KRR-KRR} Kg6 {[%emt 0:00:24]} 38. Rg5+ {[%emt 0:00:02]} Kf6 {[%emt 0:00:26]} 39. Rh5 {[%emt 0:00:02]} Rde8 {[%emt 0:06:26]} 40. d7 {[%emt 0:00:24]} Rd8 {[%emt 0:06:09]} 41. Rxh8 {[%emt 0:00:02] White is clearly winning.} Rxd7 {[%emt 0:00:01]} 42. Rh6+ {[%emt 0:00:21]} Kg7 {[%emt 0:00:25]} 43. Rd6 {[%emt 0:00:02] Weighted Error Value: White=0.13 (very precise) /Black=0.46.  Mistake:       	White=1     	Black=5      Inaccurate:     	---       	Black=5      OK:         	White=11    	Black=5      Best:        	White=1     	Black=1      Brilliant:      	White=1     	---} 1-0